bitfinex-derivatives/quotes_ETHF0:USTF0_20240930
["timestamp","ask_amount","ask_price","bid_price","bid_amount"]
[1727724788738,1.90170616,2594.2,2594.1,1.63558]
[1727724788935,1.51613616,2594.2,2594.1,1.63558]
[1727724789134,1.90170616,2594.2,2594.1,1.63558]
[1727724789331,1.51613616,2594.2,2594.1,1.63558]
[1727724789528,1.90170616,2594.2,2594.1,1.63558]
[1727724789733,1.51613616,2594.2,2594.1,1.63558]
[1727724789935,1.51613616,2594.2,2593.9,3.32206992]
[1727724789936,0.38559,2594.1,2594.0,0.38559]
[1727724790140,0.4019,2594.1,2594.0,2.02149]
[1727724790344,0.78748,2594.1,2594.0,2.02149]
[1727724791136,0.4019,2594.1,2594.0,2.02149]
[1727724791737,0.78748,2594.1,2594.0,2.02149]
[1727724791937,0.4019,2594.1,2594.0,2.02149]
[1727724792135,0.78748,2594.1,2594.0,2.02149]
[1727724792338,0.4019,2594.1,2594.0,2.02149]
[1727724793149,0.78748,2594.1,2594.0,2.02149]
[1727724793531,0.78748,2594.1,2593.8,0.96407]
[1727724793532,7.02323616,2594.1,2593.8,1.00723992]
[1727724793733,0.38563,2593.8,2593.7,0.38564]
[1727724793942,0.38563,2593.8,2593.7,1.63564]
[1727724793943,1.90162679,2593.8,2593.7,1.63564]
[1727724794137,2.29232679,2593.8,2593.7,1.63564]
[1727724794842,2.29232679,2593.8,2593.7,1.25]
[1727724795935,2.29232679,2593.8,2593.7,1.63564]
[1727724796936,1.51599679,2593.8,2593.7,1.63564]
[1727724797143,1.90162679,2593.8,2593.7,1.63564]
[1727724797344,0.38563,2593.8,2593.7,1.63564]
[1727724799749,4.72379679,2593.9,2593.7,1.25]
[1727724799936,1.51599679,2594.0,2593.8,1.25]
[1727724800251,1.91789679,2594.1,2594.0,0.3856]
[1727724800449,1.91789679,2594.1,2594.0,1.6356]
[1727724800642,1.51599679,2594.2,2594.0,5.1052]
[1727724800844,1.51599679,2594.2,2594.1,0.38558]
[1727724801241,5.10935679,2594.3,2594.1,0.38558]
[1727724801435,5.10935679,2594.3,2594.2,1.25]
[1727724803047,4.72379679,2594.3,2594.1,1.25]
[1727724803255,0.3856,2594.0,2593.9,1.6356]
[1727724803441,0.3856,2594.0,2593.9,1.25]
[1727724803651,3.5934,2594.0,2593.9,1.25]
[1727724803951,5.10914843,2594.0,2593.9,1.25]
[1727724804141,1.90134843,2594.0,2593.9,1.25]
[1727724804342,5.10914843,2594.0,2593.9,1.25]
[1727724805652,1.90134843,2594.0,2593.9,1.63561]
[1727724806154,1.90134843,2594.0,2593.9,1.25]
[1727724806643,1.90134843,2594.0,2593.9,1.63561]
[1727724807046,1.90134843,2594.0,2593.9,1.25]
[1727724807443,1.90134843,2594.0,2593.9,1.63561]
[1727724808042,1.90134843,2594.0,2593.9,1.25]
[1727724808249,1.90134843,2594.0,2593.9,1.63561]
[1727724808453,1.90134843,2594.0,2593.9,1.25]
[1727724809150,5.10914843,2594.0,2593.9,1.25]
[1727724809856,5.10914843,2594.0,2593.9,1.63561]
[1727724810160,5.10914843,2594.0,2593.9,1.25]
[1727724810350,11.29665873,2594.0,2593.6,2.64288992]
[1727724810549,0.38564,2593.7,2593.6,1.25]
[1727724810852,0.38566,2593.6,2593.5,1.00723992]
[1727724811046,0.38567,2593.5,2593.4,2.64291992]
[1727724812148,0.38567,2593.5,2593.4,1.63568]
[1727724812951,0.38567,2593.5,2593.4,2.64291992]
[1727724813151,0.38567,2593.5,2593.4,1.63568]
[1727724814253,0.38569,2593.4,2593.2,0.38571]
[1727724814455,0.38572,2593.2,2593.1,2.64295992]
[1727724814753,0.38572,2593.2,2593.0,0.367]
[1727724814754,0.38573,2593.2,2593.0,2.64296992]
[1727724814957,3.981,2593.1,2593.0,1.63573]
[1727724815157,0.38575,2593.0,2592.9,1.00723992]
[1727724815461,0.38575,2593.0,2592.8,1.89644818]
[1727724815462,0.38575,2593.0,2592.8,2.25723992]
[1727724815662,0.3951,2592.9,2592.8,1.39300992]
[1727724815968,0.3951,2592.9,2592.8,0.38577]
[1727724816459,0.3951,2592.9,2592.8,1.63577]
[1727724817652,0.3951,2592.9,2592.8,3.09577]
[1727724831662,0.3951,2592.9,2592.8,0.38577]
[1727724833697,0.38578,2592.8,2592.7,0.38579]
[1727724833874,0.38578,2592.8,2592.6,0.38579]
[1727724834182,0.3951,2592.9,2592.4,2.71]
[1727724834183,0.7613,2592.7,2592.4,2.71]
[1727724834381,1.1471,2592.7,2592.5,0.38581]
[1727724834778,0.7613,2592.7,2592.5,0.38581]
[1727724835079,0.7613,2592.7,2592.2,0.96]
[1727724835389,0.38582,2592.6,2592.4,0.38583]
[1727724835891,0.374,2592.5,2592.4,0.38583]
[1727724836383,13.4394,2592.5,2592.0,0.7742]
[1727724836583,0.38583,2592.4,2592.0,0.3765]
[1727724836881,3.5818,2592.5,2592.0,0.3765]
[1727724836882,0.7488,2592.3,2592.0,0.3765]
[1727724837081,0.7488,2592.3,2592.2,0.38586]
[1727724837487,4.6064,2592.3,2592.2,0.38586]
[1727724837780,4.6064,2592.3,2592.1,0.38586]
[1727724837982,0.7488,2592.3,2592.1,0.38586]
[1727724838183,0.7488,2592.3,2592.2,0.38586]
[1727724838579,4.6064,2592.3,2592.2,0.38586]
[1727724841486,4.6064,2592.3,2592.0,1.6265]
[1727724841487,0.7488,2592.3,2592.0,1.6265]
[1727724841685,0.7488,2592.3,2592.1,0.38587]
[1727724842180,0.7488,2592.3,2592.2,0.38586]
[1727724848194,1.13466,2592.3,2592.1,0.76077]
[1727724848493,1.13466,2592.3,2592.2,0.38586]
[1727724848797,1.13465,2592.3,2592.2,0.38586]
[1727724849292,0.7488,2592.3,2592.1,0.76077]
[1727724849498,0.7488,2592.3,2592.2,0.38586]
[1727724849499,1.13466,2592.3,2592.2,0.38586]
[1727724849879,0.38586,2592.2,2592.1,0.76078]
[1727724850082,0.38586,2592.2,2592.1,0.38588]
[1727724850990,1.9988,2592.3,2592.0,0.3765]
[1727724851291,1.9988,2592.3,2591.9,1.6568]
[1727724851292,0.38592,2591.9,2591.7,0.38593]
[1727724851494,4.17253,2592.1,2591.7,0.38593]
[1727724851495,0.3923,2591.8,2591.7,0.38593]
[1727724853291,9.67335,2591.8,2591.0,1.00723992]
[1727724853494,1.25,2591.5,2591.3,0.38599]
[1727724853692,1.25,2591.5,2591.1,0.7759]
[1727724853893,1.63598,2591.5,2591.3,0.386]
[1727724854195,1.63598,2591.5,2591.1,0.7759]
[1727724854196,4.84378,2591.5,2591.2,0.386]
[1727724854396,4.4578,2591.5,2591.1,0.7759]
[1727724854591,4.84377,2591.5,2591.2,0.386]
[1727724854998,4.84377,2591.5,2591.1,0.7759]
[1727724854999,0.38599,2591.4,2591.1,1.16191]
[1727724855203,0.38601,2591.3,2591.1,0.7759]
[1727724855503,0.78501,2591.3,2591.0,1.25]
[1727724855687,0.78501,2591.3,2591.0,1.63604]
[1727724855998,0.78501,2591.3,2591.0,0.38604]
[1727724856396,0.399,2591.3,2591.0,0.38604]
[1727724856596,0.785,2591.3,2590.9,2.21]
[1727724856899,0.785,2591.3,2591.0,0.38604]
[1727724857098,0.399,2591.3,2590.9,2.21]
[1727724857299,0.399,2591.3,2591.0,0.38604]
[1727724857300,0.785,2591.3,2591.0,0.38604]
[1727724858291,0.785,2591.3,2590.9,2.21]
[1727724858292,0.785,2591.3,2591.1,0.38603]
[1727724858603,0.399,2591.3,2591.1,0.38603]
[1727724859196,0.785,2591.3,2591.1,0.38603]
[1727724859591,3.2078,2591.2,2591.1,0.38603]
[1727724862603,3.2078,2591.2,2590.4,1.00723992]
[1727724862604,4.4578,2591.2,2590.4,1.00723992]
[1727724862798,0.38606,2590.9,2590.7,0.38608]
[1727724863199,3.59386,2590.9,2590.6,1.15479]
[1727724863504,3.59386,2590.9,2590.6,1.1548]
[1727724863505,0.38608,2590.8,2590.6,1.1548]
[1727724863801,1.25,2590.8,2590.6,0.3788]
[1727724864000,1.63608,2590.8,2590.5,0.38611]
[1727724864201,1.63608,2590.8,2590.5,0.38612]
[1727724864395,1.63608,2590.8,2590.6,0.3861]
[1727724864801,1.63608,2590.8,2590.4,1.7287]
[1727724864802,1.25,2590.8,2590.4,0.7687]
[1727724865005,1.63608,2590.8,2590.6,0.3861]
[1727724865693,2.02988,2590.8,2590.6,0.3861]
[1727724866299,0.77988,2590.8,2590.6,0.38609]
[1727724866508,0.3938,2590.8,2590.7,0.38609]
[1727724866807,0.77988,2590.8,2590.7,0.38609]
[1727724867505,0.3861,2590.7,2590.6,0.38609]
[1727724867893,0.3861,2590.7,2590.4,0.7687]
[1727724867894,1.6438,2590.8,2590.4,0.7687]
[1727724868198,2.02988,2590.8,2590.7,0.38609]
[1727724870913,1.6438,2590.8,2590.7,0.38609]
[1727724871211,2.02987,2590.8,2590.7,0.38609]
[1727724871804,1.6438,2590.8,2590.7,0.38609]
[1727724872706,2.02987,2590.8,2590.7,0.38609]
[1727724872906,1.6438,2590.8,2590.7,0.38609]
[1727724873307,2.02987,2590.8,2590.7,0.38609]
[1727724874611,0.3861,2590.7,2590.6,0.38609]
[1727724875503,2.02988,2590.8,2590.7,0.38609]
[1727724881117,2.02987,2590.8,2590.7,0.38609]
[1727724888128,5.23767,2590.8,2590.7,0.38609]
[1727724889026,4.8516,2590.8,2590.7,0.38609]
[1727724889919,3.6016,2590.8,2590.7,0.38609]
[1727724890325,3.98767,2590.8,2590.7,0.38609]
[1727724890619,3.98767,2590.8,2590.4,1.73403]
[1727724890620,0.38611,2590.7,2590.6,0.38609]
[1727724890817,2.03031,2590.7,2590.6,0.38609]
[1727724893118,1.6442,2590.7,2590.4,0.3788]
[1727724893318,0.38611,2590.6,2590.5,0.38611]
[1727724893621,2.0303,2590.7,2590.6,0.3861]
[1727724895430,0.7803,2590.7,2590.6,0.3861]
[1727724900218,2.29646641,2590.7,2590.6,0.3861]
[1727724900531,0.3861,2590.6,2590.5,0.76561]
[1727724900918,1.6361,2590.6,2590.5,0.38611]
[1727724901122,1.6361,2590.6,2590.4,0.3788]
[1727724901123,0.38617,2590.2,2590.1,0.38617]
[1727724901326,0.38618,2590.1,2590.0,0.38618]
[1727724901525,0.7585,2590.1,2590.0,0.38618]
[1727724901828,1.14468,2590.1,2590.0,0.38618]
[1727724902017,0.7585,2590.1,2590.0,0.38618]
[1727724903127,4.72496491,2590.3,2590.2,0.38616]
[1727724903128,3.2078,2590.3,2590.2,0.38616]
[1727724903522,1.51716491,2590.4,2590.2,3.8608]
[1727724903828,2.29248491,2590.5,2590.4,0.38613]
[1727724904128,1.90636491,2590.5,2590.4,0.38613]
[1727724906023,0.3892,2590.5,2590.4,0.38613]
[1727724906229,2.29248491,2590.5,2590.4,0.38613]
[1727724906430,3.54248491,2590.5,2590.4,0.38613]
[1727724906830,3.15636491,2590.5,2590.1,2.34006992]
[1727724907023,2.67660491,2590.4,2590.3,0.38614]
[1727724907228,2.29046491,2590.4,2590.3,0.38614]
[1727724907830,2.67659491,2590.4,2590.3,0.38614]
[1727724908027,2.29046491,2590.4,2590.3,0.38614]
[1727724908229,1.51716491,2590.4,2590.3,1.63614]
[1727724908535,2.01962873,2590.5,2590.4,0.38613]
[1727724908536,1.51716491,2590.5,2590.4,0.38613]
[1727724908735,1.51716491,2590.5,2590.4,0.75383]
[1727724909038,1.51716491,2590.5,2590.4,1.12663]
[1727724909837,0.38612,2590.5,2590.4,1.12663]
[1727724910035,0.77712,2590.5,2590.4,1.12663]
[1727724910334,0.391,2590.5,2590.4,1.12663]
[1727724911732,6.00672873,2590.6,2590.4,0.7405]
[1727724911935,4.72661707,2590.6,2590.5,0.38612]
[1727724912134,4.72661707,2590.6,2590.5,6.54608748]
[1727724912135,3.2078,2590.6,2590.5,6.54608748]
[1727724912337,3.2078,2590.6,2590.5,8.05676566]
[1727724912532,3.2078,2590.6,2590.5,2.68994993]
[1727724912727,3.2078,2590.6,2590.5,6.54994993]
[1727724913037,3.584,2590.6,2590.5,2.68994993]
[1727724913432,3.584,2590.6,2590.5,1.67884756]
[1727724913834,3.584,2590.6,2590.5,2.69005013]
[1727724914537,1.51881707,2590.7,2590.5,2.80340574]
[1727724914742,0.3835,2590.8,2590.6,1.01111595]
[1727724914743,2.27691707,2590.8,2590.6,1.01111595]
[1727724915039,2.66299707,2590.8,2590.6,1.39721595]
[1727724915240,2.27691707,2590.8,2590.6,1.01111595]
[1727724915440,2.27691707,2590.8,2590.7,0.38609]
[1727724916734,2.66299707,2590.8,2590.6,1.39720595]
[1727724916929,2.27691707,2590.8,2590.7,0.38609]
[1727724917841,2.66300707,2590.8,2590.6,1.39721595]
[1727724918045,0.38609,2590.7,2590.6,1.39721595]
[1727724918545,2.27691707,2590.8,2590.6,1.01111595]
[1727724918747,0.38609,2590.7,2590.6,1.01111595]
[1727724918943,3.59389,2590.7,2590.6,1.39721595]
[1727724919146,3.59389,2590.7,2590.6,0.3861]
[1727724919147,4.72661707,2590.7,2590.6,0.3861]
[1727724919445,3.2078,2590.7,2590.6,1.39721595]
[1727724919738,3.59389,2590.7,2590.6,1.39721595]
[1727724919938,3.2078,2590.7,2590.6,1.39721595]
[1727724920534,3.59389,2590.7,2590.6,1.01111595]
[1727724920840,3.59389,2590.7,2590.5,1.01111595]
[1727724921044,3.59389,2590.7,2590.6,0.3861]
[1727724921448,3.2078,2590.7,2590.6,0.3861]
[1727724923049,2.66299707,2590.8,2590.6,0.3861]
[1727724923252,3.2078,2590.7,2590.6,0.3861]
[1727724924944,3.59389,2590.7,2590.6,0.3861]
[1727724925152,3.2078,2590.7,2590.6,0.3861]
[1727724925542,3.2078,2590.7,2590.5,1.01111595]
[1727724925742,0.38612,2590.5,2590.4,1.01100179]
[1727724925949,0.38619,2590.0,2589.9,0.3719]
[1727724926142,0.38619,2590.0,2589.9,1.66483616]
[1727724926347,5.9178,2590.1,2589.9,1.66483616]
[1727724926651,0.3966,2590.0,2589.9,0.75811]
[1727724927749,0.3966,2590.0,2589.6,0.96562]
[1727724927944,2.30138907,2590.0,2589.8,0.38621]
[1727724928146,2.71,2589.9,2589.6,0.3719]
[1727724928448,0.38623,2589.8,2589.6,0.3719]
[1727724928650,0.38623,2589.8,2589.6,0.75815]
[1727724928953,0.4066,2589.7,2589.6,0.75815]
[1727724929452,0.4066,2589.7,2589.6,0.3719]
[1727724929644,0.4066,2589.7,2589.6,0.75815]
[1727724930347,0.4066,2589.7,2589.6,0.3719]
[1727724930548,3.1166,2589.7,2589.6,0.3719]
[1727724930854,3.1166,2589.7,2589.2,0.96]
[1727724931051,0.3982,2589.6,2589.4,0.38628]
[1727724931261,0.3982,2589.6,2589.2,1.3585]
[1727724931444,0.3982,2589.6,2589.2,0.3985]
[1727724931646,0.3982,2589.6,2589.2,0.78481]
[1727724931850,0.38627,2589.5,2589.2,0.78481]
[1727724932353,0.78446,2589.6,2589.3,0.38629]
[1727724932558,3.2078,2589.5,2589.3,0.38629]
[1727724932756,3.2078,2589.5,2589.2,0.3985]
[1727724932757,3.59408,2589.5,2589.2,0.7848]
[1727724932961,6.30408,2589.5,2589.2,0.3985]
[1727724933252,6.30407,2589.5,2589.2,0.3985]
[1727724933645,6.30407,2589.5,2589.2,0.78481]
[1727724933646,1.25,2589.3,2589.2,0.78481]
[1727724934756,1.25,2589.3,2589.0,0.38633]
[1727724934954,1.25,2589.1,2589.0,0.38633]
[1727724935459,1.25,2589.1,2588.9,1.57605]
[1727724935658,1.25,2589.1,2588.9,1.1897]
[1727724936051,1.25,2589.1,2589.0,0.38634]
[1727724936856,1.25,2589.1,2588.9,1.1897]
[1727724936857,1.25,2589.1,2588.9,0.3926]
[1727724937053,1.25,2589.0,2588.8,0.38637]
[1727724937257,1.25,2589.0,2588.7,0.3918]
[1727724937565,1.63634,2589.0,2588.7,0.77818]
[1727724937751,1.25,2589.0,2588.8,0.38637]
[1727724938157,1.25,2589.0,2588.7,0.3918]
[1727724938362,1.25,2589.0,2588.9,0.38636]
[1727724938755,1.25,2589.0,2588.7,0.3918]
[1727724938951,1.63635,2589.0,2588.8,0.38636]
[1727724939758,1.25,2589.0,2588.8,0.38636]
[1727724940057,1.25,2589.0,2588.7,0.3918]
[1727724940254,1.25,2589.0,2588.6,0.38639]
[1727724940255,1.63638,2588.8,2588.6,0.38639]
[1727724940456,1.63638,2588.8,2588.3,5.73619864]
[1727724940457,1.12969,2588.7,2588.5,0.38641]
[1727724940666,1.25,2588.6,2588.5,0.38641]
[1727724941656,2.71,2588.6,2588.5,0.38641]
[1727724942161,2.71,2588.6,2588.3,5.73619864]
[1727724942362,2.71,2588.6,2588.3,0.38644]
[1727724942363,2.71,2588.4,2588.3,0.38644]
[1727724942660,2.71,2588.4,2588.2,0.38645]
[1727724942661,3.09644,2588.4,2588.2,0.38645]
[1727724943052,2.71,2588.4,2588.1,0.8064]
[1727724943258,0.4049,2588.3,2588.2,0.38646]
[1727724946762,2.71,2588.4,2588.1,0.8064]
[1727724947071,3.2078,2588.6,2588.1,0.8064]
[1727724947072,5.9178,2588.6,2588.1,0.8064]
[1727724947266,3.2078,2588.6,2588.5,0.38642]
[1727724948273,3.2078,2588.6,2588.5,0.78772]
[1727724951962,2.71,2588.9,2588.5,0.78772]
[1727724951963,3.2078,2588.9,2588.8,0.38637]
[1727724952366,3.59416,2588.9,2588.8,0.38637]
[1727724952563,3.59416,2588.9,2588.6,1.3351]
[1727724952564,0.38638,2588.8,2588.7,0.38638]
[1727724952771,5.9178,2588.9,2588.6,0.3691]
[1727724953369,6.30417,2588.9,2588.7,0.38638]
[1727724953773,6.30417,2588.9,2588.8,0.38637]
[1727724954975,0.38638,2588.8,2588.7,0.38638]
[1727724955265,6.30417,2588.9,2588.8,0.38637]
[1727724955473,6.30417,2588.9,2588.7,0.38637]
[1727724955474,5.9178,2588.9,2588.7,0.38637]
[1727724955676,5.9178,2588.9,2588.6,0.3691]
[1727724955677,0.38638,2588.8,2588.6,0.75549]
[1727724955875,0.38638,2588.8,2588.7,0.38639]
[1727724956267,5.9178,2588.9,2588.5,0.4013]
[1727724956569,5.9178,2588.9,2588.6,0.77869]
[1727724956570,0.38637,2588.8,2588.6,0.77869]
[1727724956763,0.38637,2588.8,2588.7,0.38639]
[1727724957165,5.9178,2588.9,2588.6,0.3923]
[1727724957365,6.30417,2588.9,2588.8,0.38637]
[1727724957766,10.16657,2588.9,2588.8,0.38637]
[1727724958381,0.38638,2588.8,2588.7,0.38638]
[1727724958879,0.38637,2588.8,2588.7,0.38639]
[1727724960867,0.3864,2588.7,2588.6,0.38639]
[1727724961067,0.96605,2588.5,2588.2,0.3765]
[1727724961373,0.38644,2588.4,2588.3,0.38643]
[1727724961578,3.59422,2588.5,2588.4,0.38643]
[1727724961976,0.38645,2588.4,2588.3,0.38644]
[1727724962273,3.09645,2588.4,2588.3,0.38644]
[1727724964874,2.71,2588.4,2588.3,0.38644]
[1727724965075,3.2078,2588.5,2588.4,0.38643]
[1727724965275,3.0964,2588.6,2588.5,0.38642]
[1727724965472,2.71,2588.6,2588.5,0.38642]
[1727724966083,2.71,2588.6,2588.5,0.78842]
[1727724967274,5.9178,2589.0,2588.9,0.38636]
[1727724967468,5.9178,2589.0,2588.6,0.96601]
[1727724967469,5.9178,2589.0,2588.6,0.4011]
[1727724967668,0.38637,2588.9,2588.8,0.38637]
[1727724967883,0.38638,2588.8,2588.7,0.38637]
[1727724968182,3.09638,2588.8,2588.7,0.38637]
[1727724971480,2.71,2588.8,2588.7,0.38637]
[1727724972779,3.09637,2588.8,2588.7,0.38637]
[1727724972974,2.71,2588.8,2588.7,0.38637]
[1727724975384,2.71,2588.8,2588.6,0.4011]
[1727724975385,1.51858907,2588.9,2588.6,0.4011]
[1727724975579,5.11272907,2589.0,2588.9,0.38636]
[1727724975777,3.59414,2589.0,2588.9,0.38636]
[1727724975982,3.2078,2589.0,2588.9,0.38636]
[1727724976278,4.84414,2589.0,2588.9,0.38636]
[1727724976478,6.36272907,2589.0,2588.9,0.38636]
[1727724977384,4.4578,2589.0,2588.6,0.4011]
[1727724977584,3.09638,2588.8,2588.7,0.38636]
[1727724978575,2.71,2588.8,2588.7,0.38636]
[1727724978987,3.09637,2588.8,2588.7,0.38636]
[1727724979485,4.61380266,2588.8,2588.7,0.38636]
[1727724980187,4.22743266,2588.8,2588.7,0.38636]
[1727724980579,4.61380266,2588.8,2588.7,0.38636]
[1727724981489,3.09637,2588.8,2588.7,0.38636]
[1727724981785,4.61549264,2588.8,2588.7,0.38636]
[1727724982384,3.09637,2588.8,2588.7,0.38636]
[1727724982683,5.11599873,2588.8,2588.7,0.38636]
[1727724983280,5.11599873,2588.8,2588.5,0.78841]
[1727724983281,0.3864,2588.6,2588.5,0.78841]
[1727724983586,5.9178,2588.6,2588.3,0.3807]
[1727724983781,0.38643,2588.4,2588.3,0.76714]
[1727724983990,1.51940886,2588.5,2588.3,0.76714]
[1727724984283,1.51940886,2588.5,2588.4,0.38643]
[1727724984284,1.90582886,2588.5,2588.4,0.38643]
[1727724985590,1.90582886,2588.5,2588.3,0.3807]
[1727724986386,0.38643,2588.4,2588.3,0.76714]
[1727724986784,2.71,2588.4,2588.1,0.38647]
[1727724986989,2.0257737,2588.5,2588.1,0.38647]
[1727724986990,4.22861364,2588.2,2588.1,0.38647]
[1727724987186,1.51861364,2588.2,2588.1,0.38647]
[1727724987584,1.51861364,2588.2,2588.1,0.76727]
[1727724988088,3.1722737,2588.3,2588.1,0.3808]
[1727724988283,3.1722737,2588.3,2588.2,0.38646]
[1727724988881,2.0257737,2588.3,2588.2,0.38646]
[1727724989687,2.71,2588.4,2588.1,0.3808]
[1727724989688,2.0257737,2588.4,2588.1,0.3808]
[1727724989881,2.0257737,2588.4,2588.3,0.38645]
[1727724990082,2.0257737,2588.5,2588.4,0.38643]
[1727724990690,9.1061737,2588.6,2588.5,0.38642]
[1727724991195,8.3299737,2588.6,2588.5,0.38642]
[1727724991892,5.9178,2588.6,2588.5,0.38642]
[1727724992088,2.4121737,2588.7,2588.5,0.38642]
[1727724992288,1.51748556,2588.6,2588.5,0.38642]
[1727724992881,1.51748556,2588.6,2588.5,4.24962]
[1727724993090,2.4121537,2588.8,2588.6,0.3864]
[1727724993091,1.51748556,2588.7,2588.6,0.3864]
[1727724997294,1.51748556,2588.8,2588.6,3.8632]
[1727724997503,3.2078,2588.9,2588.6,2.76992844]
[1727724997799,3.2078,2588.9,2588.8,0.38637]
[1727724998205,3.2078,2588.9,2588.8,5.01917]
[1727724998897,2.76748556,2589.1,2589.0,0.38634]
[1727724999602,1.51748556,2589.1,2589.0,0.38634]
[1727725001601,7.43528556,2589.2,2588.8,0.7704]
[1727725001803,7.43528556,2589.2,2589.1,0.38633]
[1727725003897,4.22748556,2589.2,2589.1,4.24873]
[1727725004094,1.51748556,2589.3,2588.9,5.13267]
[1727725004399,5.03918556,2589.4,2589.2,0.38631]
[1727725004595,1.90378556,2589.3,2589.2,0.38631]
[1727725004997,0.3863,2589.3,2589.2,0.38631]
[1727725006099,0.3863,2589.3,2589.0,0.3776]
[1727725006100,5.42547556,2589.4,2589.3,0.3863]
[1727725007901,0.396,2589.6,2589.3,0.3863]
[1727725007902,0.60139646,2589.6,2589.5,0.38626]
[1727725008097,3.98235029,2590.2,2589.5,11.30896911]
[1727725008098,2.52772744,2589.9,2589.5,11.30896911]
[1727725008300,0.91576744,2589.9,2589.8,3.59402]
[1727725008604,2.02222288,2590.2,2590.1,0.38618]
[1727725008909,2.71,2590.7,2590.1,8.58501899]
[1727725008910,0.7823,2590.6,2590.1,8.58501899]
[1727725009114,1.39781653,2590.4,2590.1,3.2078]
[1727725009797,1.39781653,2590.4,2590.1,3.59397]
[1727725009994,0.3887,2590.5,2590.1,9.7786]
[1727725010194,0.3887,2590.5,2590.4,3.2078]
[1727725010195,1.78651653,2590.5,2590.4,3.2078]
[1727725015509,4.49651653,2590.5,2590.1,3.2078]
[1727725015806,4.49651653,2590.5,2589.7,3.2078]
[1727725015807,1.39781653,2589.9,2589.7,3.2078]
[1727725016004,4.10781653,2589.9,2589.7,3.2078]
[1727725016199,4.10781653,2589.9,2589.2,2.90772068]
[1727725016200,1.39781653,2589.8,2589.4,3.2078]
[1727725016404,2.71,2589.9,2589.4,3.2078]
[1727725016405,1.39781653,2589.7,2589.4,3.2078]
[1727725016707,1.39781653,2589.5,2589.4,3.2078]
[1727725017910,1.39781653,2589.5,2589.4,3.59408]
[1727725019018,3.2078,2590.3,2589.9,0.3862]
[1727725019220,3.2078,2590.3,2589.9,3.2078]
[1727725019221,1.39781653,2590.0,2589.9,3.2078]
[1727725019511,1.39781653,2590.0,2589.9,3.59401]
[1727725025606,1.39781653,2590.0,2589.6,3.2078]
[1727725025806,2.71,2590.1,2589.3,2.71]
[1727725025807,1.39781653,2589.7,2589.4,0.38627]
[1727725026009,1.39781653,2589.4,2589.3,3.59409]
[1727725029809,0.3788,2589.6,2589.3,9.2078]
[1727725030013,0.3788,2589.6,2589.5,0.38627]
[1727725030416,0.3931,2589.7,2589.6,0.38625]
[1727725030615,1.79091653,2589.7,2589.6,3.59405]
[1727725035821,0.3884,2589.9,2589.8,0.38622]
[1727725036312,1.78621653,2589.9,2589.8,0.38622]
[1727725036910,3.2078,2590.6,2589.8,12.5716]
[1727725037113,0.7655,2590.4,2590.3,0.38615]
[1727725037619,2.16331653,2590.4,2590.3,0.38615]
[1727725037920,2.16331653,2590.4,2590.2,3.2078]
[1727725038114,1.39781653,2590.3,2590.2,0.38615]
[1727725038816,1.39781653,2590.3,2589.9,3.2078]
[1727725039118,1.39781653,2590.0,2589.9,3.59401]
[1727725039514,1.39781653,2590.0,2589.8,0.38621]
[1727725039716,0.8022,2589.9,2589.8,0.38621]
[1727725039916,2.20001653,2589.9,2589.8,0.38621]
[1727725040914,0.8022,2589.9,2589.8,0.38621]
[1727725041214,2.20001653,2589.9,2589.8,0.38621]
[1727725048728,0.09,2590.7,2589.8,0.38621]
[1727725048729,0.36,2590.8,2589.8,18.4879134]
[1727725048929,0.45,2591.9,2591.8,0.38592]
[1727725049125,0.45,2591.9,2591.8,6.30372]
[1727725049321,0.45,2591.9,2591.8,7.30982642]
[1727725049526,0.45,2591.9,2591.8,6.30372]
[1727725050034,0.45,2591.9,2591.8,7.30852236]
[1727725050234,0.45,2591.9,2591.8,6.30372]
[1727725052335,1.1613,2592.5,2592.3,0.38584]
[1727725052531,3.8576,2592.4,2592.3,0.38584]
[1727725055640,1.1613,2592.5,2592.4,0.38583]
[1727725056147,5.0189,2592.5,2592.4,0.38583]
[1727725056536,2.19967,2592.5,2592.4,0.38583]
[1727725056730,0.40307402,2596.0,2592.4,0.38583]
[1727725056731,1.1504,2594.5,2593.6,1.46393]
[1727725056935,1.1504,2594.5,2594.0,1.84952]
[1727725057243,1.1504,2594.5,2594.2,2.71]
[1727725057538,3.8544,2594.4,2594.0,3.2078]
[1727725057736,1.1504,2594.5,2594.0,1.84953]
[1727725058251,1.1504,2594.5,2594.0,1.84952]
[1727725058845,3.8544,2594.4,2594.0,0.38559]
[1727725059032,1.1504,2594.5,2594.0,0.38559]
[1727725059229,3.2078,2594.4,2594.0,0.38559]
[1727725059633,7.0622,2594.4,2594.0,0.38559]
[1727725060033,7.0622,2594.4,2593.9,0.3856]
[1727725060234,3.2078,2594.4,2594.0,0.38559]
[1727725060640,7.0622,2594.4,2594.0,0.38559]
[1727725062939,3.59334,2594.4,2594.0,0.38559]
[1727725063145,3.59334,2594.4,2594.0,1.84952]
[1727725063344,3.2078,2594.4,2594.0,1.84952]
[1727725064150,3.59334,2594.4,2594.0,1.84952]
[1727725064339,3.59334,2594.4,2594.0,1.46393]
[1727725064340,3.2078,2594.4,2594.0,1.46393]
[1727725064644,3.2078,2594.4,2594.0,1.84952]
[1727725064645,3.59334,2594.4,2594.0,1.84952]
[1727725064841,3.59334,2594.4,2592.1,0.3864]
[1727725064842,3.2078,2596.8,2594.7,1.92742]
[1727725065052,0.38513,2597.2,2596.7,2.71]
[1727725065341,1.1497,2597.8,2597.1,0.38514]